[Event "Live Chess"]
[Site "Chess.com"]
[Date "2023.05.20"]
[Round "-"]
[White "Salpingidis"]
[Black "mightysmasher"]
[Result "1-0"]
[WhiteElo "2321"]
[BlackElo "2131"]
[TimeControl "300"]
[EndTime "11:42:40 PDT"]
[Termination "Salpingidis won by resignation"]

1. d4 {[%clk 0:04:55]} 1... d5 {[%clk 0:04:58.7]} 2. c4 {[%clk 0:04:52.9]} 2...
e6 {[%clk 0:04:57.5]} 3. Nc3 {[%clk 0:04:51.7]} 3... Nf6 {[%clk 0:04:56.9]} 4.
cxd5 {[%clk 0:04:51.1]} 4... exd5 {[%clk 0:04:56]} 5. Bg5 {[%clk 0:04:50.7]}
5... Be7 {[%clk 0:04:55.2]} 6. e3 {[%clk 0:04:50.2]} 6... O-O {[%clk 0:04:54.3]}
7. Bd3 {[%clk 0:04:48.9]} 7... b6 {[%clk 0:04:52.3]} 8. Nge2 {[%clk 0:04:44.3]}
8... Bb7 {[%clk 0:04:50.9]} 9. O-O {[%clk 0:04:42]} 9... Bd6 {[%clk 0:04:50]}
10. Ng3 {[%clk 0:04:33]} 10... h6 {[%clk 0:04:48.5]} 11. Bxf6 {[%clk 0:04:19.1]}
11... Qxf6 {[%clk 0:04:47.3]} 12. Nf5 {[%clk 0:04:16.1]} 12... Nd7 {[%clk
0:04:44.3]} 13. Nxd6 {[%clk 0:04:12.5]} 13... Qxd6 {[%clk 0:04:42.9]} 14. Nb5
{[%clk 0:04:05.6]} 14... Qf6 {[%clk 0:04:40.3]} 15. Nxc7 {[%clk 0:03:58.4]}
15... a6 {[%clk 0:04:37]} 16. Qg4 {[%clk 0:03:47.2]} 16... Rac8 {[%clk
0:04:29.2]} 17. Qxd7 {[%clk 0:03:43.7]} 17... Rfd8 {[%clk 0:04:27.6]} 18. Nxd5
{[%clk 0:03:25.8]} 18... Bxd5 {[%clk 0:04:23.7]} 19. Qf5 {[%clk 0:03:25.1]}
19... Qd6 {[%clk 0:04:19]} 20. Rfc1 {[%clk 0:03:13.8]} 20... Rb8 {[%clk
0:04:12.5]} 21. Qh7+ {[%clk 0:03:09.5]} 21... Kf8 {[%clk 0:04:10.9]} 22. Qh8+
{[%clk 0:03:09.4]} 22... Ke7 {[%clk 0:04:10.2]} 23. Qh7 {[%clk 0:02:55.9]} 23...
g6 {[%clk 0:04:05.7]} 24. e4 {[%clk 0:02:46.8]} 24... Be6 {[%clk 0:04:02.7]} 25.
d5 {[%clk 0:02:38]} 25... Bd7 {[%clk 0:03:52.8]} 26. e5 {[%clk 0:02:29.2]} 26...
Qxd5 {[%clk 0:03:49.9]} 27. Bc4 {[%clk 0:02:28.6]} 27... Qxe5 {[%clk 0:03:34.6]}
28. Qxf7+ {[%clk 0:02:26.5]} 28... Kd6 {[%clk 0:03:33.7]} 29. Rd1+ {[%clk
0:02:18.1]} 29... Kc7 {[%clk 0:03:31.8]} 30. Rac1 {[%clk 0:02:15.5]} 30... Kb7
{[%clk 0:03:28.4]} 31. Rxd7+ {[%clk 0:02:11.7]} 1-0

[Event "Live Chess"]
[Site "Chess.com"]
[Date "2023.05.20"]
[Round "-"]
[White "Supertromp"]
[Black "wadsy27"]
[Result "1/2-1/2"]
[WhiteElo "2188"]
[BlackElo "2582"]
[TimeControl "300"]
[EndTime "11:42:41 PDT"]
[Termination "Game drawn by repetition"]

1. e4 {[%clk 0:04:58.3]} 1... e6 {[%clk 0:04:56.7]} 2. d4 {[%clk 0:04:56.7]}
2... d5 {[%clk 0:04:56.6]} 3. Bd3 {[%clk 0:04:56]} 3... dxe4 {[%clk 0:04:54.8]}
4. Bxe4 {[%clk 0:04:55.9]} 4... Nf6 {[%clk 0:04:54.1]} 5. Bf3 {[%clk 0:04:55.5]}
5... c5 {[%clk 0:04:52.9]} 6. Ne2 {[%clk 0:04:54.8]} 6... e5 {[%clk 0:04:52.2]}
7. dxe5 {[%clk 0:04:43.7]} 7... Qxd1+ {[%clk 0:04:50]} 8. Kxd1 {[%clk
0:04:43.6]} 8... Ng4 {[%clk 0:04:49.1]} 9. Bxg4 {[%clk 0:04:39.9]} 9... Bxg4
{[%clk 0:04:49]} 10. Be3 {[%clk 0:04:34.9]} 10... Nc6 {[%clk 0:04:44.3]} 11. f3
{[%clk 0:04:34.2]} 11... O-O-O+ {[%clk 0:04:40.5]} 12. Nd2 {[%clk 0:04:32.9]}
12... Bf5 {[%clk 0:04:36.4]} 13. g4 {[%clk 0:04:08.5]} 13... Bg6 {[%clk
0:04:33.1]} 14. Nf4 {[%clk 0:04:07.1]} 14... Nxe5 {[%clk 0:04:29.5]} 15. Nxg6
{[%clk 0:04:05.1]} 15... hxg6 {[%clk 0:04:29.4]} 16. Ke2 {[%clk 0:04:03.2]}
16... Be7 {[%clk 0:04:20.5]} 17. Ne4 {[%clk 0:03:58.6]} 17... Rhe8 {[%clk
0:04:14]} 18. Rad1 {[%clk 0:03:56.4]} 18... Rxd1 {[%clk 0:04:10.5]} 19. Rxd1
{[%clk 0:03:54.8]} 19... f5 {[%clk 0:04:09.8]} 20. gxf5 {[%clk 0:03:47.6]} 20...
gxf5 {[%clk 0:04:09.7]} 21. Rd5 {[%clk 0:03:00.6]} 21... Nc4 {[%clk 0:04:05.5]}
22. Rxf5 {[%clk 0:02:37.8]} 22... Nxb2 {[%clk 0:04:01]} 23. Bxc5 {[%clk
0:02:32.8]} 23... b6 {[%clk 0:03:58.3]} 24. Bd4 {[%clk 0:02:26.5]} 24... Nc4
{[%clk 0:03:50.4]} 25. Bxg7 {[%clk 0:02:25]} 25... Nd6 {[%clk 0:03:22.3]} 26.
Re5 {[%clk 0:02:11.1]} 26... Nf7 {[%clk 0:03:15.5]} 27. Rf5 {[%clk 0:01:59]}
27... Nd6 {[%clk 0:03:14.5]} 28. Re5 {[%clk 0:01:56.3]} 28... Nf7 {[%clk
0:02:56.1]} 29. Rf5 {[%clk 0:01:52.4]} 29... Nd6 {[%clk 0:02:55.2]} 1/2-1/2

[Event "Live Chess"]
[Site "Chess.com"]
[Date "2023.05.20"]
[Round "-"]
[White "Ocelot32"]
[Black "jagbama"]
[Result "0-1"]
[WhiteElo "1399"]
[BlackElo "1131"]
[TimeControl "300"]
[EndTime "11:42:42 PDT"]
[Termination "jagbama won by resignation"]

1. e4 {[%clk 0:04:56]} 1... e5 {[%clk 0:04:57.2]} 2. Nf3 {[%clk 0:04:54.6]} 2...
Nc6 {[%clk 0:04:56.8]} 3. Bb5 {[%clk 0:04:53.4]} 3... Bc5 {[%clk 0:04:55.8]} 4.
O-O {[%clk 0:04:51.7]} 4... d6 {[%clk 0:04:51.1]} 5. h3 {[%clk 0:04:50.2]} 5...
a6 {[%clk 0:04:39.8]} 6. Ba4 {[%clk 0:04:48.4]} 6... b5 {[%clk 0:04:39.2]} 7.
Bb3 {[%clk 0:04:47.3]} 7... Nd4 {[%clk 0:04:38.6]} 8. Nxd4 {[%clk 0:04:43.9]}
8... Bxd4 {[%clk 0:04:37.4]} 9. c3 {[%clk 0:04:42.5]} 9... Ba7 {[%clk
0:04:28.8]} 10. Qf3 {[%clk 0:04:36.3]} 10... Nf6 {[%clk 0:04:27.4]} 11. d4
{[%clk 0:04:33]} 11... O-O {[%clk 0:04:26]} 12. Bg5 {[%clk 0:04:29.4]} 12... h6
{[%clk 0:04:19.6]} 13. Bh4 {[%clk 0:04:26.1]} 13... exd4 {[%clk 0:04:09.7]} 14.
cxd4 {[%clk 0:04:20.3]} 14... Bxd4 {[%clk 0:04:08.6]} 15. e5 {[%clk 0:04:18]}
15... dxe5 {[%clk 0:04:02.2]} 16. Nc3 {[%clk 0:04:14.8]} 16... g5 {[%clk
0:03:50]} 17. Qxa8 {[%clk 0:04:10.3]} 17... gxh4 {[%clk 0:03:39.5]} 18. Qf3
{[%clk 0:04:03.2]} 18... Kh8 {[%clk 0:03:26.8]} 19. Rad1 {[%clk 0:03:47.3]}
19... Rg8 {[%clk 0:03:21.2]} 20. Ne4 {[%clk 0:03:36.1]} 20... Nxe4 {[%clk
0:03:12.5]} 21. Qxe4 {[%clk 0:03:26.8]} 21... Bxh3 {[%clk 0:03:10.8]} 22. Bxf7
{[%clk 0:02:49.3]} 22... Bxg2 {[%clk 0:02:38.5]} 23. Bxg8 {[%clk 0:02:39.6]}
23... Bxe4 {[%clk 0:02:28.3]} 24. Be6 {[%clk 0:02:30]} 24... Qg5+ {[%clk
0:02:24.7]} 0-1

[Event "Live Chess"]
[Site "Chess.com"]
[Date "2023.05.20"]
[Round "-"]
[White "MaximKris"]
[Black "xx_blindpuffin_xx"]
[Result "0-1"]
[WhiteElo "1885"]
[BlackElo "2210"]
[TimeControl "300"]
[EndTime "11:42:43 PDT"]
[Termination "xx_blindpuffin_xx won by checkmate"]

1. e4 {[%clk 0:04:58.7]} 1... c6 {[%clk 0:04:58.1]} 2. Nf3 {[%clk 0:04:57]} 2...
d5 {[%clk 0:04:54.2]} 3. Nc3 {[%clk 0:04:55.8]} 3... Bg4 {[%clk 0:04:50.7]} 4.
d4 {[%clk 0:04:53.7]} 4... e6 {[%clk 0:04:46.8]} 5. h3 {[%clk 0:04:52]} 5...
Bxf3 {[%clk 0:04:45.7]} 6. Qxf3 {[%clk 0:04:51.9]} 6... dxe4 {[%clk 0:04:42.1]}
7. Nxe4 {[%clk 0:04:51.8]} 7... Nf6 {[%clk 0:04:41.5]} 8. Nxf6+ {[%clk
0:04:50.4]} 8... Qxf6 {[%clk 0:04:39.6]} 9. Qxf6 {[%clk 0:04:49.1]} 9... gxf6
{[%clk 0:04:39.5]} 10. Bf4 {[%clk 0:04:48.4]} 10... Nd7 {[%clk 0:04:30.4]} 11.
c3 {[%clk 0:04:47]} 11... e5 {[%clk 0:04:28.1]} 12. dxe5 {[%clk 0:04:45.9]}
12... fxe5 {[%clk 0:04:26.9]} 13. Be3 {[%clk 0:04:44.7]} 13... Bc5 {[%clk
0:04:25.5]} 14. O-O-O {[%clk 0:04:43.7]} 14... Bxe3+ {[%clk 0:04:23.9]} 15. fxe3
{[%clk 0:04:43.6]} 15... O-O-O {[%clk 0:04:22.3]} 16. Bc4 {[%clk 0:04:43.2]}
16... Rhg8 {[%clk 0:04:10.3]} 17. Bxf7 {[%clk 0:04:40.3]} 17... Rxg2 {[%clk
0:04:07.7]} 18. Be6 {[%clk 0:04:37.8]} 18... Kc7 {[%clk 0:04:05.4]} 19. Rhf1
{[%clk 0:04:36.4]} 19... Rg7 {[%clk 0:03:51.4]} 20. Bxd7 {[%clk 0:04:31.5]}
20... Rdxd7 {[%clk 0:03:43.9]} 21. Rxd7+ {[%clk 0:04:28.5]} 21... Kxd7 {[%clk
0:03:42]} 22. Rd1+ {[%clk 0:04:26.2]} 22... Ke7 {[%clk 0:03:40.6]} 23. Rf1
{[%clk 0:04:23.8]} 23... Rg3 {[%clk 0:03:37.7]} 24. e4 {[%clk 0:04:20.1]} 24...
Rxh3 {[%clk 0:03:34.7]} 25. Rf4 {[%clk 0:04:19.6]} 25... exf4 {[%clk 0:03:32.3]}
26. e5 {[%clk 0:04:18]} 26... Rh2 {[%clk 0:03:29.5]} 27. e6 {[%clk 0:04:17.9]}
27... Rg2 {[%clk 0:03:27.6]} 28. b3 {[%clk 0:04:16.4]} 28... h5 {[%clk 0:03:27]}
29. Kb1 {[%clk 0:04:16.3]} 29... h4 {[%clk 0:03:26.6]} 30. c4 {[%clk 0:04:14.6]}
30... h3 {[%clk 0:03:26.3]} 31. c5 {[%clk 0:04:14.5]} 31... h2 {[%clk
0:03:25.6]} 32. b4 {[%clk 0:04:14.4]} 32... h1=Q# {[%clk 0:03:25]} 0-1

[Event "Live Chess"]
[Site "Chess.com"]
[Date "2023.05.20"]
[Round "-"]
[White "Doge_Dandolo"]
[Black "domrobson"]
[Result "1-0"]
[WhiteElo "2078"]
[BlackElo "1747"]
[TimeControl "300"]
[EndTime "11:42:44 PDT"]
[Termination "Doge_Dandolo won by resignation"]

1. Nf3 {[%clk 0:04:57.7]} 1... Nf6 {[%clk 0:04:57.7]} 2. c4 {[%clk 0:04:56]}
2... e6 {[%clk 0:04:55.3]} 3. g3 {[%clk 0:04:54.6]} 3... d5 {[%clk 0:04:54.7]}
4. Bg2 {[%clk 0:04:53.8]} 4... c6 {[%clk 0:04:54.3]} 5. O-O {[%clk 0:04:52.6]}
5... Nbd7 {[%clk 0:04:53.8]} 6. d4 {[%clk 0:04:51.8]} 6... Bd6 {[%clk
0:04:53.2]} 7. Qc2 {[%clk 0:04:49.6]} 7... O-O {[%clk 0:04:52.4]} 8. Nbd2 {[%clk
0:04:48.7]} 8... b6 {[%clk 0:04:50.3]} 9. e4 {[%clk 0:04:47.8]} 9... dxe4 {[%clk
0:04:48.3]} 10. Nxe4 {[%clk 0:04:47]} 10... Nxe4 {[%clk 0:04:47.6]} 11. Qxe4
{[%clk 0:04:46.2]} 11... Bb7 {[%clk 0:04:45.4]} 12. Rd1 {[%clk 0:04:44.1]} 12...
Nf6 {[%clk 0:04:43.1]} 13. Qc2 {[%clk 0:04:39.8]} 13... Qc7 {[%clk 0:04:39.2]}
14. c5 {[%clk 0:04:35.6]} 14... Be7 {[%clk 0:04:31.8]} 15. Bf4 {[%clk
0:04:33.4]} 15... Qc8 {[%clk 0:04:28.7]} 16. Ne5 {[%clk 0:04:31.2]} 16... Nd5
{[%clk 0:04:26.2]} 17. Rac1 {[%clk 0:04:22.7]} 17... Nxf4 {[%clk 0:04:22.9]} 18.
gxf4 {[%clk 0:04:21.6]} 18... bxc5 {[%clk 0:04:22]} 19. dxc5 {[%clk 0:04:19]}
19... f6 {[%clk 0:04:19]} 20. Nd3 {[%clk 0:04:09.5]} 20... Ba6 {[%clk
0:04:13.3]} 21. Nb4 {[%clk 0:04:04.3]} 21... Bb5 {[%clk 0:04:09.6]} 22. a4
{[%clk 0:04:02.2]} 22... a5 {[%clk 0:04:08.3]} 23. axb5 {[%clk 0:03:59.6]} 23...
axb4 {[%clk 0:04:06.9]} 24. Bxc6 {[%clk 0:03:57.2]} 24... Rb8 {[%clk 0:03:52.6]}
25. Qc4 {[%clk 0:03:53.8]} 25... Kh8 {[%clk 0:03:50.4]} 26. Rd7 {[%clk
0:03:50.8]} 26... Bd8 {[%clk 0:03:41.3]} 27. Qxe6 {[%clk 0:03:36.1]} 27... Bc7
{[%clk 0:03:40]} 28. Qe7 {[%clk 0:03:32.7]} 1-0

[Event "Live Chess"]
[Site "Chess.com"]
[Date "2023.05.20"]
[Round "-"]
[White "McSlash1"]
[Black "jameskwong"]
[Result "0-1"]
[WhiteElo "2054"]
[BlackElo "2148"]
[TimeControl "300"]
[EndTime "11:42:45 PDT"]
[Termination "jameskwong won by resignation"]

1. e4 {[%clk 0:04:59.6]} 1... c5 {[%clk 0:04:58.1]} 2. Nc3 {[%clk 0:04:56.9]}
2... d6 {[%clk 0:04:56.7]} 3. f4 {[%clk 0:04:56.3]} 3... Nc6 {[%clk 0:04:54.1]}
4. Nf3 {[%clk 0:04:55.9]} 4... Nf6 {[%clk 0:04:53.5]} 5. Bc4 {[%clk 0:04:50.9]}
5... e6 {[%clk 0:04:52.2]} 6. O-O {[%clk 0:04:49.6]} 6... Be7 {[%clk 0:04:51.5]}
7. d3 {[%clk 0:04:48.8]} 7... O-O {[%clk 0:04:50.3]} 8. f5 {[%clk 0:04:48.4]}
8... exf5 {[%clk 0:04:48.1]} 9. Qe1 {[%clk 0:04:45.3]} 9... fxe4 {[%clk
0:04:46.4]} 10. dxe4 {[%clk 0:04:45.2]} 10... Be6 {[%clk 0:04:30.2]} 11. Nd5
{[%clk 0:04:43.5]} 11... Ne5 {[%clk 0:04:17.5]} 12. Nxe7+ {[%clk 0:04:34.6]}
12... Qxe7 {[%clk 0:04:15.2]} 13. Bxe6 {[%clk 0:04:31.5]} 13... Nxf3+ {[%clk
0:04:09.6]} 14. Rxf3 {[%clk 0:04:25.6]} 14... Qxe6 {[%clk 0:04:08.6]} 15. e5
{[%clk 0:03:17.9]} 15... dxe5 {[%clk 0:04:05.4]} 16. Bg5 {[%clk 0:03:15]} 16...
Nd5 {[%clk 0:03:59.6]} 17. c4 {[%clk 0:03:13]} 17... Nb4 {[%clk 0:03:54.7]} 18.
a3 {[%clk 0:03:07.2]} 18... Nc6 {[%clk 0:03:51.8]} 19. Rd1 {[%clk 0:03:03.1]}
19... Qxc4 {[%clk 0:03:47.1]} 20. Rc3 {[%clk 0:02:58.1]} 20... Qg4 {[%clk
0:03:28.5]} 21. Rg3 {[%clk 0:02:50.2]} 21... Qe6 {[%clk 0:03:26.1]} 22. Qc3
{[%clk 0:02:40]} 22... Kh8 {[%clk 0:03:20.3]} 23. Be3 {[%clk 0:02:37.4]} 23...
b6 {[%clk 0:03:16.9]} 24. Rf1 {[%clk 0:02:30.2]} 24... Nd4 {[%clk 0:03:08.7]}
25. Qd3 {[%clk 0:02:26.1]} 25... f5 {[%clk 0:03:03.2]} 26. Rh3 {[%clk 0:02:22]}
26... Rad8 {[%clk 0:02:55.1]} 27. Qd1 {[%clk 0:02:17.9]} 27... f4 {[%clk
0:02:41.7]} 28. Qh5 {[%clk 0:02:16.1]} 28... Qf5 {[%clk 0:02:39.8]} 29. Qh4
{[%clk 0:01:57.3]} 29... Ne2+ {[%clk 0:02:20.9]} 30. Kh1 {[%clk 0:01:56]} 30...
fxe3 {[%clk 0:02:17.9]} 31. Rhf3 {[%clk 0:01:45.5]} 31... Qc8 {[%clk 0:02:11.9]}
32. Qe7 {[%clk 0:01:27.6]} 32... Rxf3 {[%clk 0:01:56.1]} 33. gxf3 {[%clk
0:01:27.5]} 33... Re8 {[%clk 0:01:51.3]} 34. Qg5 {[%clk 0:01:24.9]} 34... Nf4
{[%clk 0:01:48.1]} 35. Rg1 {[%clk 0:01:20.9]} 35... Qd7 {[%clk 0:01:44.8]} 36.
Rg4 {[%clk 0:01:09.1]} 36... Qd1+ {[%clk 0:01:40]} 37. Rg1 {[%clk 0:01:08.8]}
37... Qxf3+ {[%clk 0:01:38.9]} 0-1

[Event "Live Chess"]
[Site "Chess.com"]
[Date "2023.05.20"]
[Round "-"]
[White "Bot_Boy"]
[Black "MaximKhimchenko"]
[Result "0-1"]
[WhiteElo "332"]
[BlackElo "1347"]
[TimeControl "300"]
[EndTime "11:42:49 PDT"]
[Termination "MaximKhimchenko won on time"]

1. Nf3 {[%clk 0:04:57.8]} 1... e5 {[%clk 0:04:59.8]} 2. e4 {[%clk 0:04:56.7]}
2... Nc6 {[%clk 0:04:57.9]} 3. Bc4 {[%clk 0:04:55.3]} 3... Bc5 {[%clk
0:04:56.8]} 4. d3 {[%clk 0:04:53.9]} 4... Nf6 {[%clk 0:04:55.5]} 5. Nc3 {[%clk
0:04:50.8]} 5... d6 {[%clk 0:04:54.7]} 6. Bg5 {[%clk 0:04:48.9]} 6... Bg4 {[%clk
0:04:53.7]} 7. h3 {[%clk 0:04:42.5]} 7... Bxf3 {[%clk 0:04:52.7]} 8. Qxf3 {[%clk
0:04:36.6]} 8... Nd4 {[%clk 0:04:49.3]} 9. Qd1 {[%clk 0:04:20]} 9... h6 {[%clk
0:04:46.7]} 10. Bxf6 {[%clk 0:04:07.6]} 10... Qxf6 {[%clk 0:04:44.4]} 11. Nd5
{[%clk 0:03:40.6]} 11... Qd8 {[%clk 0:04:41.6]} 12. Ne3 {[%clk 0:03:29.4]} 12...
Ne6 {[%clk 0:04:39.5]} 13. Bxe6 {[%clk 0:03:25]} 13... fxe6 {[%clk 0:04:39.4]}
14. Qh5+ {[%clk 0:03:18.1]} 14... Kd7 {[%clk 0:04:31]} 15. Qf7+ {[%clk
0:03:06.7]} 15... Qe7 {[%clk 0:04:29.5]} 16. Qxe7+ {[%clk 0:03:05.4]} 16... Kxe7
{[%clk 0:04:27.1]} 17. g4 {[%clk 0:02:58.8]} 17... Bxe3 {[%clk 0:04:09.1]} 18.
fxe3 {[%clk 0:02:56.5]} 18... Raf8 {[%clk 0:04:09]} 19. Ke2 {[%clk 0:02:50.8]}
19... g5 {[%clk 0:04:07.2]} 20. Raf1 {[%clk 0:02:38.5]} 20... Rf6 {[%clk
0:04:07.1]} 21. h4 {[%clk 0:02:34.9]} 21... Rxf1 {[%clk 0:04:04.6]} 22. Rxf1
{[%clk 0:02:32.1]} 22... gxh4 {[%clk 0:04:04.5]} 23. Rf3 {[%clk 0:02:24.7]}
23... Rg8 {[%clk 0:04:01.9]} 24. d4 {[%clk 0:02:01.5]} 24... Rxg4 {[%clk
0:03:57.6]} 25. dxe5 {[%clk 0:01:39.7]} 25... dxe5 {[%clk 0:03:56.1]} 26. Kf2
{[%clk 0:01:29.3]} 26... Rxe4 {[%clk 0:03:49.6]} 27. Rh3 {[%clk 0:01:17.4]}
27... Kf6 {[%clk 0:03:40.5]} 28. Rf3+ {[%clk 0:01:03.7]} 28... Kg5 {[%clk
0:03:38.5]} 29. Kg2 {[%clk 0:00:44.4]} 29... Kg4 {[%clk 0:03:38.4]} 30. Rf6
{[%clk 0:00:31.2]} 30... Kh5 {[%clk 0:03:38.3]} 31. Rxe6 {[%clk 0:00:24.8]}
31... Rg4+ {[%clk 0:03:38.2]} 32. Kh3 {[%clk 0:00:15.3]} 32... Rg3+ {[%clk
0:03:38.1]} 33. Kh2 {[%clk 0:00:13.1]} 33... Rxe3 {[%clk 0:03:38]} 34. Re7
{[%clk 0:00:09.3]} 34... Re2+ {[%clk 0:03:37.9]} 35. Kh3 {[%clk 0:00:06.5]}
35... e4 {[%clk 0:03:37.8]} 36. Re5+ {[%clk 0:00:04.2]} 36... Kg6 {[%clk
0:03:37.2]} 37. Rc5 {[%clk 0:00:00.9]} 37... Re3+ {[%clk 0:03:37.1]} 0-1

[Event "Live Chess"]
[Site "Chess.com"]
[Date "2023.05.20"]
[Round "-"]
[White "Davidagye"]
[Black "viktorskliarov"]
[Result "0-1"]
[WhiteElo "1676"]
[BlackElo "2650"]
[TimeControl "300"]
[EndTime "11:43:17 PDT"]
[Termination "viktorskliarov won by resignation"]

1. b4 {[%clk 0:04:56.6]} 1... e5 {[%clk 0:04:53.7]} 2. Bb2 {[%clk 0:04:55.7]}
2... Bxb4 {[%clk 0:04:52.8]} 3. f4 {[%clk 0:04:54.3]} 3... d6 {[%clk 0:04:34]}
4. fxe5 {[%clk 0:04:53.1]} 4... dxe5 {[%clk 0:04:30.5]} 5. Bxe5 {[%clk
0:04:52.7]} 5... Nf6 {[%clk 0:04:29.5]} 6. Nf3 {[%clk 0:04:51.7]} 6... c5 {[%clk
0:04:23.8]} 7. e3 {[%clk 0:04:50.8]} 7... Nc6 {[%clk 0:04:22.7]} 8. Bb5 {[%clk
0:04:47.5]} 8... Bd7 {[%clk 0:04:19.9]} 9. Bxc6 {[%clk 0:04:45.5]} 9... Bxc6
{[%clk 0:04:18.6]} 10. O-O {[%clk 0:04:44.3]} 10... O-O {[%clk 0:04:16.5]} 11.
a3 {[%clk 0:04:35.2]} 11... Ba5 {[%clk 0:04:15.2]} 12. Nh4 {[%clk 0:04:23.5]}
12... Nd7 {[%clk 0:04:00.1]} 13. Bg3 {[%clk 0:04:14.4]} 13... g6 {[%clk
0:03:52.4]} 14. d3 {[%clk 0:03:49.6]} 14... Qg5 {[%clk 0:03:40.1]} 15. Qe2
{[%clk 0:03:28.4]} 15... Rae8 {[%clk 0:03:31.8]} 16. e4 {[%clk 0:03:24.2]} 16...
f5 {[%clk 0:03:25.3]} 17. Nf3 {[%clk 0:03:19.1]} 17... Qg4 {[%clk 0:03:15.9]}
18. Bd6 {[%clk 0:03:01.9]} 18... fxe4 {[%clk 0:03:04.9]} 19. Bxf8 {[%clk
0:02:58.7]} 19... exf3 {[%clk 0:03:03.7]} 20. Qf2 {[%clk 0:02:35.9]} 20... Qxg2+
{[%clk 0:03:02.1]} 21. Qxg2 {[%clk 0:02:34]} 21... fxg2 {[%clk 0:03:02]} 22. Rf2
{[%clk 0:02:27.7]} 22... Re1+ {[%clk 0:02:59.8]} 0-1

[Event "Live Chess"]
[Site "Chess.com"]
[Date "2023.05.20"]
[Round "-"]
[White "CeladonFish"]
[Black "olahgito"]
[Result "1-0"]
[WhiteElo "1094"]
[BlackElo "728"]
[TimeControl "300"]
[EndTime "11:43:18 PDT"]
[Termination "CeladonFish won by resignation"]

1. d4 {[%clk 0:04:57.9]} 1... d5 {[%clk 0:04:59.5]} 2. c4 {[%clk 0:04:55.3]}
2... e6 {[%clk 0:04:59]} 3. Nc3 {[%clk 0:04:53.6]} 3... Nf6 {[%clk 0:04:58.1]}
4. Bg5 {[%clk 0:04:52.2]} 4... Bb4 {[%clk 0:04:57.5]} 5. Qa4+ {[%clk 0:04:46.6]}
5... Nc6 {[%clk 0:04:53]} 6. cxd5 {[%clk 0:04:44.7]} 6... exd5 {[%clk
0:04:52.9]} 7. f3 {[%clk 0:04:42.9]} 7... Bxc3+ {[%clk 0:04:46.4]} 8. bxc3
{[%clk 0:04:42]} 8... Bd7 {[%clk 0:04:39.5]} 9. e4 {[%clk 0:04:41.2]} 9... b6
{[%clk 0:04:23.6]} 10. e5 {[%clk 0:04:37.8]} 10... Nxe5 {[%clk 0:04:21.2]} 11.
dxe5 {[%clk 0:04:36.7]} 11... Bxa4 {[%clk 0:04:20.1]} 12. exf6 {[%clk
0:04:35.5]} 12... gxf6 {[%clk 0:04:18.6]} 13. Bf4 {[%clk 0:04:29]} 13... c5
{[%clk 0:04:02.8]} 14. Ne2 {[%clk 0:04:27]} 14... Bb5 {[%clk 0:04:00.7]} 15. Ng3
{[%clk 0:04:24]} 15... Bxf1 {[%clk 0:03:59.1]} 16. Rxf1 {[%clk 0:04:23.6]} 16...
O-O {[%clk 0:03:58.2]} 17. Nh5 {[%clk 0:04:16]} 17... Re8+ {[%clk 0:03:56]} 18.
Kf2 {[%clk 0:04:14.6]} 18... Qe7 {[%clk 0:03:52.9]} 19. Kg3 {[%clk 0:04:12.7]}
19... f5 {[%clk 0:03:45.6]} 20. Rfe1 {[%clk 0:04:09.3]} 20... Qd7 {[%clk
0:03:42]} 21. Nf6+ {[%clk 0:04:05]} 21... Kg7 {[%clk 0:03:35.5]} 22. Nxd7 {[%clk
0:04:04.1]} 22... Rxe1 {[%clk 0:03:33.7]} 23. Rxe1 {[%clk 0:04:03.5]} 23... Rg8
{[%clk 0:03:31.8]} 24. Be5+ {[%clk 0:03:59.1]} 24... f6 {[%clk 0:03:30.5]} 25.
Bxf6+ {[%clk 0:03:56.5]} 25... Kf7+ {[%clk 0:03:26.3]} 26. Kf4 {[%clk
0:03:53.6]} 26... Re8 {[%clk 0:03:09.2]} 27. Rxe8 {[%clk 0:03:46.3]} 27... Kxe8
{[%clk 0:03:09.1]} 28. Ne5 {[%clk 0:03:36]} 28... Kf8 {[%clk 0:03:02.7]} 29.
Kxf5 {[%clk 0:03:35.3]} 1-0